Cogmind - Beta 14 @@@ ROGUE MODE // 2024.11.25 @ 10:35:31 Player: Littlelink Result: Destroyed by D-53 Grenadier with Mini Grenade Launcher Performance ------------- Evolutions (1) 500 Regions Visited (3) 600 Robots Destroyed (11) 55 Value Destroyed (224) 224 Prototype IDs (0) 0 Alien Tech Used (0) 0 Bonus (0) 0 TOTAL SCORE: 1379 Bonus ------- None Cogmind --------- Core Integrity 0/400 Matter 300/300 Energy 76/100 System Corruption 0% Temperature Cool (0) Movement Core (100) Ox1 Location -9/Mines Parts ------- > --- POWER (1) -------- (None) > --- PROPULSION (2) --- (None) > --- UTILITY (3) ------ Small Storage Unit Signal Interpreter Improved Targeting Computer > --- WEAPON (3) ------- (None) > --- INVENTORY (8) ---- Terrain Scan Processor Small Laser Light Assault Rifle Peak State ------------ > --- POWER ------------ Ion Engine > --- PROPULSION ------- Light Treads Light Treads > --- UTILITY ---------- Improved Heat Sink Small Storage Unit Signal Interpreter > --- WEAPON ----------- Medium Laser Particle Gun Assault Rifle > --- INVENTORY -------- Terrain Scan Processor Small Laser Light Assault Rifle Mining Laser [Rating: 12] Favorites ----------- Power Ion Engine Engine Ion Engine Propulsion Light Treads Treads Light Treads Utility Small Storage Unit Device Improved Heat Sink Storage Small Storage Unit Processor Signal Interpreter Weapon Assault Rifle Energy Gun Medium Laser Ballistic Gun Assault Rifle Special Weapon Mining Laser Build | -11 -10 -9 -9 ------- Run | Yrd Mat Mat Min Slots Evolved 2 | . . 2 . Power . | . . . . Propulsion . | . . . . Utility 1 | . . 1 . Weapon 1 | . . 1 . Parts Attached 15 | 6 4 3 2 Power 1 | 1 . . . Engine 1 | 1 . . . Core . | . . . . Reactor . | . . . . Propulsion 2 | 2 . . . Treads 2 | 2 . . . Leg . | . . . . Wheel . | . . . . Hover . | . . . . Flight . | . . . . Utility 4 | 1 1 2 . Device 1 | . 1 . . Storage 1 | 1 . . . Processor 2 | . . 2 . Hackware . | . . . . Protection . | . . . . Artifact . | . . . . Weapon 8 | 2 3 1 2 Energy Gun 4 | 1 1 1 1 Energy Cannon . | . . . . Ballistic Gun 3 | 1 2 . . Ballistic Cannon . | . . . . Launcher . | . . . . Special Weapon 1 | . . . 1 Impact Weapon . | . . . . Slashing Weapon . | . . . . Piercing Weapon . | . . . . Special Melee Weapon . | . . . . Unidentified Prototypes . | . . . . Parts Lost 7 | . . . 7 Power 1 | . . . 1 Propulsion 2 | . . . 2 Utility . | . . . . Weapon 4 | . . . 4 Highest Loss Streak 7 | . . . 7 To Critical Strikes . | . . . . Average Slot Usage (%) 94 | . 93 98 92 Engine 11 | . 14 11 9 Treads 23 | . 28 22 19 Device 5 | . 7 7 . Storage 12 | . 14 11 11 Processor 10 | . . 13 22 Energy Gun 17 | . 14 21 19 Ballistic Gun 11 | . 14 11 9 Peak Build Rating 12 | 6 10 12 11 Average Rating 9 | 4 8 11 10 On Entrance 6 | . 6 10 11 Naked Turns . | . . . . Heaviest Build 18 | 14 16 18 17 Greatest Support 40 | 40 40 40 40 Greatest Overweight (x) 1 | . . . 1 Average Overweight (x) . | . . . . Largest Inventory Capacity 8 | 8 8 8 8 Average Capacity 7 | 7 8 8 8 Most Carried 6 | 5 5 6 4 Average Carried 3 | 1 2 4 3 Final Capacity 8 | 8 8 8 8 Final Carried 5 | 1 5 4 3 Class Distribution -------------------- 55% | Mutant 44% | Gunner Dominant Class ---------------- Mutant | -10/Materials Gunner | -9/Materials Gunner | -9/Mines Resources | -11 -10 -9 -9 ----------- Run | Yrd Mat Mat Min Matter Collected 413 | 204 163 36 10 Remotely . | . . . . Salvage Created 372 | . 324 36 12 Parts 28 | . 23 5 . Haulers Intercepted . | . . . . Recyclers Shooed 1 | . 1 . . Parts Field Recycled . | . . . . Retrieved Matter . | . . . . Parts Self-Destructed . | . . . . Prevented . | . . . . Kills | -11 -10 -9 -9 ------- Run | Yrd Mat Mat Min Combat Hostiles Destroyed 9 | . 4 3 2 Guns 8 | . 4 3 1 Cannons 1 | . . . 1 Classes Destroyed 6 | . 4 1 1 Builder 2 | . 2 . . Recycler 1 | . 1 . . Watcher 1 | . 1 . . Swarmer 3 | . . 3 . Grunt 4 | . 4 . . Assembled 2 | . . . 2 Best Kill Streak 3 | . 3 3 2 Combat Bots Only 3 | . 2 3 2 Max Kills in Single Turn 1 | . 1 1 1 Gunslinging . | . . . . Exploded . | . . . . Melee . | . . . . Uniques/NPCs Destroyed . | . . . . Combat | -11 -10 -9 -9 -------- Run | Yrd Mat Mat Min Hostile Shots Fired 69 | . 21 18 30 Missed 17 | . 7 6 4 Damage Taken 1177 | . 175 133 869 Core 490 | . 52 16 422 Absorbed by Shields . | . . . . Core Remaining (%) 89 | 100 79 . . Volleys Fired 46 | . 26 7 13 Largest 3 | . 2 3 3 Hottest 135 | . 85 135 135 Shots Fired 87 | . 51 19 17 Gun 85 | . 51 19 15 Cannon . | . . . . Launcher . | . . . . Special 2 | . . . 2 Kinetic 34 | . 26 7 1 Thermal 53 | . 25 12 16 Explosive . | . . . . Electromagnetic . | . . . . Robot Hit Streak 9 | . 9 3 4 Robot Miss Streak 6 | . 6 2 5 Penetration Max . | . . . . Secondary Targets 3 | . 1 2 . Max Gunslinging Chain 1 | . 1 1 . Shots Hit Robots 49 | . 32 8 9 Core Hits 22 | . 14 3 5 Critical Kills 1 | . 1 . . Critical Parts Destroyed . | . . . . Critical Strikes 5 | . 3 . 2 Burn 4 | . 2 . 2 Destroy 1 | . 1 . . Melee Attacks . | . . . . Impact . | . . . . Slashing . | . . . . Piercing . | . . . . Sneak Attacks . | . . . . Combat Hostiles . | . . . . Follow-up Attacks . | . . . . Damage Inflicted 656 | . 414 108 134 Guns 622 | . 406 108 108 Cannons . | . . . . Explosions . | . . . . Melee . | . . . . Ramming 10 | . 8 . 2 Kinetic 199 | . 187 12 . Thermal 447 | . 219 96 132 Explosive . | . . . . Electromagnetic . | . . . . Impact . | . . . . Slashing . | . . . . Piercing . | . . . . Highest Corruption . | . . . . Average Corruption . | . . . . Corruption Purged . | . . . . Corruption Blocked . | . . . . Overload Shots . | . . . . Overflow Damage . | . . . . Projectiles . | . . . . Explosions . | . . . . Melee . | . . . . Knockbacks . | . . . . Impact . | . . . . Kinetic . | . . . . Secondary . | . . . . Self-Inflicted Damage . | . . . . Shots . | . . . . Rammed 2 | . 1 . 1 Targets Rammed 2 | . 1 . 1 Kicked . | . . . . Crushed . | . . . . Highest Temperature 92 | . 81 72 92 Average Temperature 43 | . 42 33 51 Received Heat Transfer 99 | . 99 . . Siege Activations . | . . . . Robots Corrupted . | . . . . Combat Hostiles . | . . . . Parts Fried . | . . . . Impact Corruptions . | . . . . Robots Melted . | . . . . Combat Hostiles . | . . . . Parts Melted 3 | . 3 . . Heat Transferred 1530 | . 777 259 494 Parts Sabotaged . | . . . . Parts Stolen . | . . . . Parts Stripped . | . . . . Power Chain Reactions . | . . . . Alert | -11 -10 -9 -9 ------- Run | Yrd Mat Mat Min Peak Influence 145 | . 145 87 43 Initial 33 | . . 2 33 Average 36 | . 40 46 35 Maximum Alert Level . | . . . . Low Security (%) 100 | 100 100 100 100 Level 1 . | . . . . Level 2 . | . . . . Level 3 . | . . . . Level 4 . | . . . . Level 5 . | . . . . High Security . | . . . . Max Security . | . . . . Squads Dispatched 1 | . . 1 . Investigation . | . . . . Extermination . | . . . . Reinforcement 1 | . . 1 . Assault . | . . . . Garrison . | . . . . Intercept . | . . . . Searches Triggered . | . . . . Construction Impeded . | . . . . Haulers Reinforced . | . . . . Active Scanning Responses . | . . . . Cargo Convoy Interrupts . | . . . . Stealth | -11 -10 -9 -9 --------- Run | Yrd Mat Mat Min Distress Signals 1 | . . 1 . Communications Jammed . | . . . . Distress Signals . | . . . . Times Spotted 24 | . 8 6 10 Peak Tracking Total 7 | . 2 4 7 Tactical Retreats . | . . . . Traps | -11 -10 -9 -9 ------- Run | Yrd Mat Mat Min Traps Triggered 1 | . . 1 . Indirectly . | . . . . Trap Hack Attempts . | . . . . Triggered . | . . . . Disarmed . | . . . . Reprogrammed . | . . . . Reused . | . . . . Traps Extracted . | . . . . Installed . | . . . . Triggered 1 | . . . 1 Machines | -11 -10 -9 -9 ---------- Run | Yrd Mat Mat Min Machines Disabled . | . . . . Max in Single Turn . | . . . . Machines Repaired . | . . . . Machines Dismantled . | . . . . Machines Sabotaged . | . . . . Overloaded Fab Kills . | . . . . Hacking | -11 -10 -9 -9 --------- Run | Yrd Mat Mat Min Machines Accessed 2 | . 2 . . Terminals 1 | . 1 . . Fabricators . | . . . . Repair Stations 1 | . 1 . . Recycling Units . | . . . . Scanalyzers . | . . . . Garrison Access . | . . . . Total Hacks 4 | . 4 . . Successful 1 | . 1 . . Failed 3 | . 3 . . Catastrophic . | . . . . Database Lockouts . | . . . . Manual . | . . . . Terminals 3 | . 3 . . Fabricators . | . . . . Repair Stations 1 | . 1 . . Recycling Units . | . . . . Scanalyzers . | . . . . Garrison Access . | . . . . Terminal Hacks 1 | . 1 . . Alert Level 1 | . 1 . . Fabricator Hacks . | . . . . Repair Station Hacks . | . . . . Recycling Unit Hacks . | . . . . Scanalyzer . | . . . . Garrison Access Hacks . | . . . . Unauthorized Hacks . | . . . . Terminals . | . . . . Fabricators . | . . . . Repair Stations . | . . . . Recycling Units . | . . . . Scanalyzers . | . . . . Garrison Access . | . . . . Data Cores Recovered . | . . . . Used . | . . . . Hacking Detections 2 | . 2 . . Full Trace Events 1 | . 1 . . Feedback Events . | . . . . Feedback Blocked . | . . . . Robot Schematics Acquired . | . . . . Robots Built . | . . . . Authchips . | . . . . Time . | . . . . Total Robot Build Rating . | . . . . Part Schematics Acquired . | . . . . Parts Built . | . . . . Authchips . | . . . . Time . | . . . . Total Part Build Rating . | . . . . Parts Repaired . | . . . . Time . | . . . . Parts Recycled . | . . . . Recycled Matter . | . . . . Retrieved Matter . | . . . . Retrieved Components . | . . . . Parts Scanalyzed . | . . . . Part Schematics Acquired . | . . . . Parts Damaged . | . . . . Bothacking | -11 -10 -9 -9 ------------ Run | Yrd Mat Mat Min Used RIF Installer . | . . . . Robots Hacked . | . . . . Non-combat . | . . . . Combat . | . . . . Robot Hacks Applied . | . . . . Relay Couplers Released . | . . . . Fabnet Peak Effective % . | . . . . Robots Rewired . | . . . . Allies Hacked . | . . . . Hacks Repelled . | . . . . Allies | -11 -10 -9 -9 -------- Run | Yrd Mat Mat Min Total Allies . | . . . . Largest Group . | . . . . Highest-Rated Group . | . . . . Highest-Rated Ally . | . . . . Total Orders . | . . . . Ally Attacks . | . . . . Total Damage . | . . . . Kills . | . . . . Allies Corrupted . | . . . . Allies Melted . | . . . . Intel | -11 -10 -9 -9 ------- Run | Yrd Mat Mat Min Robot Analysis Total . | . . . . Derelict Logs Recovered 1 | . . . 1 Drone Launches . | . . . . Drone Recoveries . | . . . . Exploration | -11 -10 -9 -9 ------------- Run | Yrd Mat Mat Min Turns Passed 1260 | 110 526 259 365 Spaces Moved 716 | 87 274 145 210 Core 51 | 37 . . 14 Treads 665 | 50 274 145 196 Legs . | . . . . Wheels . | . . . . Hover . | . . . . Flight . | . . . . Fastest Speed 50 | 50 160 160 100 Average Speed 153 | 113 160 160 156 Slowest Speed 160 | 160 160 160 160 Overloaded Moves . | . . . . Propulsion Burnouts . | . . . . Robots Hopped . | . . . . Cave-ins Triggered . | . . . . Exploration Rate (%) 25 | 6 46 17 32 Regions Visited 3 Branch Regions 1 Pre-discovered Areas . | . . . . Known Exits Taken 1 | . . 1 . Unknown Exits Taken 2 | 1 1 . . Scrap Searched . | . . . . Spaces Dug . | . . . . Terrain Destroyed 1 | . . . 1 Melee . | . . . . Projectile 1 | . . . 1 AOE . | . . . . Terrain Rammed . | . . . . Walls Destroyed . | . . . . Machines Disabled . | . . . . Actions | -11 -10 -9 -9 --------- Run | Yrd Mat Mat Min Total 792 | 99 309 157 227 Wait . | . . . . Move 713 | 86 273 144 210 Hop . | . . . . Pick Up 15 | 7 5 2 1 Fast Attach . | . . . . Attach 11 | 6 1 2 2 Detach . | . . . . Swap 4 | . 3 1 . Drop 1 | . . 1 . Fire 46 | . 26 7 13 Melee . | . . . . Ram . | . . . . Kick . | . . . . Crush 2 | . 1 . 1 Escape Stasis . | . . . . Rewire . | . . . . Trap . | . . . . Miscellaneous . | . . . . Route ------- -11/Scrapyard -10/Materials (discovered 2 exits: *Mat / [*Min]) -9/Materials -9/Mines (discovered 1 exit: *Mat) History --------- Turn | Location | Event 7 | -11/Scrapyard | Discovered new exit (range 16) 111 | -11/Scrapyard | Entered Materials 300 | -10/Materials | Build established: Mutant 409 | -10/Materials | Discovered new exit (range 10) 613 | -10/Materials | Discovered new exit (range 15) 637 | -10/Materials | Entered another Materials area 637 | -9/Materials | Evolved 2 slots: Utility x1, Weapon x1 875 | -9/Materials | Discovered new exit (range 12) 891 | -9/Materials | Identified exit to Mines 896 | -9/Materials | Entered Mines 902 | -9/Mines | Met a Derelict bent on vengeance 952 | -9/Mines | Build established: Gunner 999 | -9/Mines | Discovered new exit (range 7) 1007 | -9/Mines | Identified exit to Materials 1177 | -9/Mines | Assembled infested the area 1254 | -9/Mines | Core integrity fell below 50% 1260 | -9/Mines | Core integrity fell below 20% 1261 | -9/Mines | Destroyed by D-53 Grenadier with Mini Grenade Launcher Last Messages --------------- as-85509 destroyed. Med. Laser severed. as-17144 suffers critical hit (Burn). Lgt. Treads destroyed. The unstable cave ceiling collapses. Particle Gun destroyed. as-17144 destroyed. K-01 Serf collects debris. as-36976 sneak attacks. K-01 Serf destroyed. as-36976 destroyed. Acquired 10 matter. Acquired Med. Laser. Mining Laser destroyed. The unstable cave ceiling collapses. D-53 Grenadier suffers critical hit (Burn). Med. Laser destroyed. The unstable cave ceiling collapses. T-07 Excavator destroyed. The unstable cave ceiling collapses. Map ----- +----------------------------------------------------+ | ??????????????????????????????????## ##### | | ????????????????????????????####### ##???## | | ???????????????????????????## ##??????# | | ???????????????????????????# ###????????## | | ???????????????????????????# ##???????????? | | ???????????????????????????## #????????????? | | ????????????????????????????## ##???????????? | | ???????????????????####?#????# ##??????????? | | ??????????????????? ## ????## #??????????? | | ?????????????????? = #?????### #??????????? | | ????????????????? |%* #??????## #??????????? | | ?????????????????% ! ######### ##??????????? | | ???????????????? %!% #???????????? | | ????????????????? =% #???????????? | | ?????????????????? ########### ##??????????? | | ??????????????????# #??## ## ###????????? | | ??????????????????# d ???# ##???????? | | ??????????????????# d ##??# ?? | | ??????????????????# #??## ## #? | | ?????????????????## ###?# ##?# ## #? | | ????????????????## # ### ##??? ##??? # | | ????????????????# # ##????# ##?????? | | ???????????????## ### ##?????###???????? | | ???????????????# # # ## #???????????????? | | ???????????????# ## #???????????????? | | ???????????????# @ ##???????????????? | | ???????????????# ##????????????????? | | ???????????????## ##?????????????????? | | ????????????????## ## ##??????????????????? | | ?????????????????#############???????????????????? | | ?????????????????????????????????????????????????? | | ?????????????????????????????????????????????????? | | ?????????????????????????????????????????????????? | | ?????????????????????????????????????????????????? | | ?????????????????????????????????????????????????? | | ?????????????????????????????????????????????????? | | ?????????????????????????????????????????????????? | | ?????????????????????????????????????????????????? | | ?????????????????????????????????????????????????? | | ?????????????????????????????????????????????????? | | ?????????????????????????????????????????????????? | | ?????????????????????????????????????????????????? | | ?????????????????????????????????????????????????? | | ?????????????????????????????????????????????????? | | ?????????????????????????????????????????????????? | | ?????????????????????????????????????????????????? | | ?????????????????????????????????????????????????? | | ?????????????????????????????????????????????????? | | | | | +----------------------------------------------------+ Best States ------------- Heat Dissipation 42 Energy Generation 10 Energy Capacity 250 Matter Stores 300 Matter Capacity 300 Sight Range 16 Terrain Scan Density 10 Evasion (%) 50 Targeting Accuracy 6 Recoil Reduction 2 Item Schematics ----------------- None Robot Schematics ------------------ None Fabricated ------------ Nothing Alien Tech Used ----------------- None Achievements -------------- None Challenges ------------ None Game ------ Seed DrainedEtherialSaw Manual? 0 Play Time 00:11:19 Cumulative 6.9 hours Start 2024.11.25 @ 09:50:17 End 2024.11.25 @ 10:35:31 Sessions 1 Manual Loads 0 Difficulty Rogue Special Mode None Game No. 20 Rogue 20 Adventurer 0 Explorer 0 Win Type - Total 0 Types 0/0/0/0/0/0/0/0/0 Lore% 5 Gallery% 12 Achievement% 12 Wizard Run 0 Options --------- Layout 1 ASCII 0 Keyboard 0 Movement Arrows Keybinds 0 Fullscreen 1 Font 18/SmallcapsGlow Map View 50x40 Zoom Use 0% Tactical HUD 0 Map Filters NONE Filters NONE Steam 1 RUN: c0ec7bba-3c18-4de1-bfa9-71f02d86e5ec